bitfinex/quotes_SOLUSD_20240808
["timestamp","ask_amount","ask_price","bid_price","bid_amount"]
[1723092853331,20.0,152.59,152.5,6.4068]
[1723092853332,20.0,152.57,152.5,6.4068]
[1723092853735,28.98,152.58,152.5,6.4068]
[1723092853940,45.34,152.57,152.5,6.4068]
[1723092854310,35.5339,152.58,152.5,6.4068]
[1723092854511,20.0,152.57,152.5,6.4068]
[1723092855547,28.98,152.64,152.5,6.4068]
[1723092855548,28.98,152.6,152.5,6.4068]
[1723092856214,6.5532,152.6,152.5,6.4068]
[1723092856430,28.98,152.6,152.5,6.4068]
[1723092856821,35.5331,152.6,152.5,6.4068]
[1723092857143,6.5536,152.59,152.5,6.4068]
[1723092857443,0.17,152.58,152.5,6.4068]
[1723092857654,45.34,152.58,152.5,6.4068]
[1723092857830,20.0,152.57,152.5,6.4068]
[1723092858720,28.98,152.56,152.5,6.4068]
[1723092859348,20.0,152.57,152.5,6.4068]
[1723092859534,20.0,152.59,152.5,6.4068]
[1723092859926,0.17,152.6,152.51,1.31117]
[1723092860132,0.17,152.6,152.5,6.4068]
[1723092860133,38.19527417,152.62,152.52,21.9932]
[1723092860448,0.17,152.61,152.52,23.30422437]
[1723092860742,6.7227,152.61,152.52,21.9932]
[1723092860942,6.7227,152.61,152.53,1.3110253]
[1723092861123,0.17,152.61,152.53,1.3110253]
[1723092861432,20.0,152.6,152.53,1.3110253]
[1723092861831,20.0,152.6,152.52,21.9932]
[1723092862750,31.64307417,152.62,152.52,21.9932]
[1723092863648,38.19527417,152.62,152.52,21.9932]
[1723092864218,20.0,152.61,152.52,21.9932]
[1723092864733,73.98,152.6,152.52,21.9932]
[1723092865052,6.5535,152.59,152.52,21.9932]
[1723092865256,80.5331,152.6,152.52,21.9932]
[1723092865654,73.98,152.6,152.52,21.9932]
[1723092865866,389.1,152.64,152.54,6.1033]
[1723092866027,28.98,152.7,152.58,28.98]
[1723092866231,6.5496,152.68,152.58,30.2904114]
[1723092866421,6.5488,152.7,152.6,28.98]
[1723092866949,6.5488,152.7,152.6,30.29018062]
[1723092867128,9.25698509,152.7,152.6,28.98]
[1723092867329,9.25698509,152.7,152.6,30.29018057]
[1723092867536,9.25698509,152.7,152.6,28.98]
[1723092867736,6.5488,152.7,152.6,28.98]
[1723092867930,6.5492,152.69,152.6,28.98]
[1723092868239,6.75905269,152.73,152.6,51.2109]
[1723092868447,28.98,152.72,152.6,51.2109]
[1723092868954,395.85852973,152.76,152.6,51.2109]
[1723092869260,28.98,152.72,152.61,1.31003866]
[1723092870255,28.98,152.72,152.6,51.2109]
[1723092870552,28.98,152.7,152.6,22.2309]
[1723092870723,65.0,152.69,152.6,22.2309]
[1723092871127,0.17,152.68,152.6,22.2309]
[1723092871941,0.34,152.68,152.6,22.2309]
[1723092872748,6.5501,152.67,152.6,22.2309]
[1723092873356,45.0,152.66,152.6,22.2309]
[1723092873726,20.0,152.65,152.6,22.2309]
[1723092874844,26.5512,152.65,152.6,22.2309]
[1723092875048,20.0,152.65,152.6,22.2309]
[1723092876935,20.0,152.67,152.6,22.2309]
[1723092877450,0.17,152.68,152.6,22.2309]
[1723092877653,2.65425009,152.69,152.6,22.2309]
[1723092877840,6.5502,152.67,152.6,22.2309]
[1723092878554,6.5506,152.66,152.6,22.2309]
[1723092878731,20.0,152.65,152.6,22.2309]
[1723092879455,20.0,152.67,152.6,22.2309]
[1723092879636,45.0,152.66,152.6,22.2309]
[1723092879834,20.0,152.65,152.6,22.2309]
[1723092880243,28.98,152.68,152.6,22.2309]
[1723092880551,395.6492,152.69,152.6,22.2309]
[1723092881140,6.5496,152.68,152.6,22.2309]
[1723092881550,389.1,152.69,152.6,22.2309]
[1723092881750,20.0,152.68,152.6,22.2309]
[1723092882149,20.0,152.68,152.6,51.2109]
[1723092882349,20.0,152.68,152.61,1.31009513]
[1723092883067,20.0,152.68,152.62,16.0163]
[1723092883363,38.21581296,152.74,152.63,7.4937953]
[1723092883566,38.21581296,152.74,152.63,6.1837]
[1723092883567,31.66881296,152.74,152.63,6.1837]
[1723092883869,6.5479,152.72,152.63,6.1837]
[1723092884849,35.5279,152.72,152.63,6.1837]
[1723092885469,28.98,152.7,152.63,6.1837]
[1723092885769,20.0,152.69,152.63,6.1837]
[1723092890668,74.32,152.68,152.63,6.1837]
[1723092891255,80.8696,152.68,152.63,6.1837]
[1723092891769,6.5505,152.66,152.63,6.1837]
[1723092891962,28.98,152.66,152.62,16.0163]
[1723092892296,71.5513,152.65,152.62,16.0163]
[1723092892454,0.17,152.64,152.62,16.0163]
[1723092892864,0.17,152.64,152.6,6.2623]
[1723092893880,0.17,152.64,152.58,15.3793]
[1723092893881,28.98,152.62,152.58,15.3793]
[1723092894360,29.15,152.64,152.58,15.3793]
[1723092894558,20.0,152.63,152.58,15.3793]
[1723092895878,80.8722,152.62,152.58,15.3793]
[1723092896488,6.5527,152.61,152.58,15.3793]
[1723092896695,74.32,152.62,152.58,15.3793]
[1723092896862,45.0,152.6,152.58,15.3793]
[1723092897365,73.98,152.6,152.58,15.3793]
[1723092897995,73.98,152.6,152.54,22.6147]
[1723092898183,20.34,152.59,152.54,22.6147]
[1723092898368,45.0,152.58,152.54,22.6147]
[1723092899197,51.5539,152.58,152.54,22.6147]
[1723092899366,80.5339,152.58,152.54,22.6147]
[1723092899562,73.98,152.58,152.54,22.6147]
[1723092899774,28.98,152.56,152.47,22.684]
[1723092900081,28.98,152.52,152.47,22.684]
[1723092900279,65.0,152.51,152.47,22.684]
[1723092900470,35.7074,152.5,152.47,22.684]
[1723092900795,20.0,152.49,152.47,22.684]
[1723092901173,28.98,152.52,152.47,22.684]
[1723092901174,20.0,152.5,152.47,22.684]
[1723092901602,26.5574,152.5,152.47,22.684]
[1723092901889,45.34,152.49,152.47,22.684]
[1723092902305,20.0,152.48,152.47,22.684]
[1723092902470,389.1,152.55,152.47,22.684]
[1723092902669,418.08,152.55,152.47,22.684]
[1723092902900,6.5562,152.53,152.47,22.684]
[1723092903096,6.5567,152.52,152.47,22.684]
[1723092903306,6.5578,152.49,152.42,6.2639]
[1723092903603,28.98,152.5,152.42,6.2639]
[1723092903604,35.5374,152.5,152.42,6.2639]
[1723092903895,416.80464524,152.54,152.42,6.2639]
[1723092903896,420.7707552,152.54,152.42,6.2639]
[1723092904197,20.0,152.53,152.43,28.98]
[1723092904700,395.86710858,152.57,152.46,6.6658]
[1723092905001,6.76710858,152.57,152.46,7.97730089]
[1723092905301,6.5543,152.57,152.46,7.97730089]
[1723092906182,20.0,152.56,152.47,15.9297]
[1723092906382,20.0,152.56,152.48,1.31139055]
[1723092906588,28.98,152.54,152.47,15.9297]
[1723092906768,6.557,152.51,152.47,15.9297]
[1723092906974,20.0,152.5,152.47,15.9297]
[1723092907601,20.0,152.51,152.47,15.9297]
[1723092907785,20.0,152.52,152.47,15.9297]
[1723092908179,20.34,152.53,152.47,15.9297]
[1723092908379,20.0,152.53,152.47,15.9297]
[1723092908878,45.17,152.52,152.47,15.9297]
[1723092909084,26.5569,152.51,152.47,15.9297]
[1723092909317,45.0,152.5,152.47,15.9297]
[1723092909600,51.5574,152.5,152.47,15.9297]
[1723092909910,20.0,152.49,152.47,15.9297]
[1723092910071,0.17,152.52,152.47,15.9297]
[1723092910387,20.0,152.52,152.47,15.9297]
[1723092910787,20.0,152.54,152.47,15.9297]
[1723092911097,45.0,152.53,152.47,15.9297]
[1723092911291,20.0,152.52,152.47,15.9297]
[1723092912079,26.5567,152.52,152.47,15.9297]
[1723092912480,6.5572,152.51,152.47,15.9297]
[1723092912681,20.0,152.5,152.47,15.9297]
[1723092912887,6.5582,152.48,152.47,15.9297]
[1723092913104,100.8782,152.48,152.47,15.9297]
[1723092913289,483.42,152.48,152.33,35.74864826]
[1723092913487,6.5601,152.44,152.33,35.74864826]
[1723092913673,20.0,152.43,152.33,35.74864826]
[1723092913873,20.0,152.43,152.33,35.24864826]
[1723092914298,0.34,152.47,152.37,28.98]
[1723092914606,434.1,152.48,152.39,28.98]
[1723092915318,389.1,152.48,152.39,28.98]
[1723092916893,6.5565,152.52,152.41,28.98]
[1723092918110,38.20446163,152.53,152.41,28.98]
[1723092918400,28.98,152.55,152.43,28.98]
[1723092918615,0.17,152.54,152.43,30.29164909]
[1723092918799,35.5352,152.55,152.43,28.98]
[1723092919105,35.5352,152.55,152.44,1.31164915]
[1723092919519,45.0,152.54,152.44,1.31164915]
[1723092919712,6.5548,152.56,152.45,28.98]
[1723092920406,6.5552,152.55,152.45,28.98]
[1723092920605,28.98,152.57,152.43,28.98]
[1723092920807,28.98,152.55,152.43,28.98]
[1723092920999,20.0,152.54,152.43,28.98]
[1723092921315,20.0,152.54,152.43,30.29150153]
[1723092921516,20.0,152.54,152.44,0.17]
[1723092921815,20.0,152.55,152.44,0.17]
[1723092921998,26.5553,152.55,152.43,30.29150153]
[1723092922340,48.98,152.55,152.43,28.98]
[1723092922889,45.17,152.54,152.43,28.98]
[1723092923215,26.5561,152.53,152.41,28.98]
[1723092923402,51.5566,152.52,152.41,28.98]
[1723092924618,45.0,152.52,152.41,28.98]
[1723092924918,6.5576,152.5,152.39,28.98]
[1723092925502,28.98,152.49,152.37,28.98]
[1723092925714,65.17,152.48,152.37,28.98]
[1723092926014,6.5591,152.46,152.35,28.98]
[1723092927217,26.5595,152.45,152.35,28.98]
[1723092927429,71.5595,152.45,152.33,28.98]
[1723092927795,65.0,152.45,152.33,28.98]
[1723092928408,20.0,152.45,152.35,28.98]
[1723092928613,20.0,152.46,152.35,28.98]
[1723092930620,20.0,152.46,152.37,28.98]
[1723092930822,28.98,152.49,152.38,1.31204424]
[1723092931001,28.98,152.49,152.37,28.98]
[1723092931410,6.5584,152.48,152.37,28.98]
[1723092931614,28.98,152.38,152.24,0.834356]
[1723092931801,28.98,152.4,152.24,0.834356]
[1723092931802,6.5622,152.39,152.24,0.834356]
[1723092932118,28.98,152.32,152.24,0.834356]
[1723092933328,28.98,152.3,152.29,6.5664]
[1723092933831,25.58065054,152.38,152.29,6.5664]
[1723092933832,37.35,152.34,152.29,6.5664]
[1723092934413,37.35,152.34,152.24,0.834356]
[1723092935416,37.35,152.34,152.29,6.5663]
[1723092936207,37.35,152.34,152.28,6.5668]
[1723092936208,43.9143,152.34,152.28,6.5668]
[1723092936621,20.0,152.33,152.28,6.5668]
[1723092936921,26.5647,152.33,152.27,6.5671]
[1723092937101,20.0,152.33,152.25,6.5677]
[1723092937302,6.566,152.3,152.24,0.834356]
[1723092937699,6.5662,152.3,152.24,7.402856]
[1723092938111,20.17,152.29,152.24,0.834356]
[1723092938312,20.17,152.29,152.24,7.402756]
[1723092938608,26.7364,152.29,152.24,7.402756]
[1723092938811,6.5671,152.28,152.24,0.834356]
[1723092939109,20.0,152.29,152.24,0.834356]
[1723092939310,16.457,152.3,152.24,0.834356]
[1723092940223,8.78326145,152.31,152.24,0.834356]
[1723092940523,20.0,152.3,152.24,0.834356]
[1723092940907,47.84429918,152.33,152.24,0.834356]
[1723092941101,65.17,152.32,152.24,0.834356]
[1723092942034,6.5657,152.31,152.24,0.834356]
[1723092942219,48.01429918,152.33,152.24,0.834356]
[1723092942220,10.49429918,152.33,152.24,0.834356]
[1723092942520,37.35,152.35,152.24,0.834356]
[1723092942915,53.7598,152.35,152.24,0.834356]
[1723092943107,46.32393863,152.38,152.24,0.834356]
[1723092943108,6.5651,152.32,152.24,0.834356]
[1723092943306,6.5645,152.34,152.24,0.834356]
[1723092943520,20.0,152.33,152.24,0.834356]
[1723092943726,20.0,152.34,152.24,0.834356]
[1723092943932,45.0,152.33,152.24,0.834356]
[1723092944131,20.0,152.32,152.24,0.834356]
[1723092944717,20.0,152.32,152.24,2.14770386]
[1723092944913,20.0,152.34,152.24,2.14770386]
[1723092945227,20.0,152.34,152.24,0.834356]
[1723092945408,20.34,152.35,152.24,0.834356]
[1723092945746,45.34,152.34,152.24,0.834356]
[1723092946021,20.0,152.33,152.25,1.31334579]
[1723092946230,26.5639,152.35,152.24,0.834356]
[1723092946414,6.5643,152.34,152.24,0.834356]
[1723092946619,20.0,152.33,152.24,0.834356]
[1723092946931,6.5651,152.32,152.24,0.834356]
[1723092947231,20.0,152.33,152.24,0.834356]
[1723092947538,26.5647,152.33,152.24,0.834356]
[1723092948307,45.17,152.32,152.24,0.834356]
[1723092948510,6.5664,152.29,152.24,0.834356]
[1723092948812,57.35,152.33,152.24,0.834356]
[1723092949017,45.17,152.32,152.24,0.834356]
[1723092949213,20.17,152.31,152.24,0.834356]
[1723092949426,45.17,152.3,152.24,0.834356]
[1723092949727,20.0,152.29,152.24,0.834356]
[1723092950112,6.5654,152.32,152.24,0.834356]
[1723092950308,20.0,152.31,152.24,0.834356]
[1723092950726,20.0,152.32,152.24,0.834356]
[1723092951430,29.17067918,152.34,152.24,0.834356]
[1723092951809,6.5648,152.33,152.24,0.834356]
[1723092952379,6.5656,152.31,152.24,0.834356]
[1723092952508,26.7351,152.32,152.24,0.834356]
[1723092952833,45.17,152.31,152.24,0.834356]
[1723092953138,20.0,152.3,152.24,0.834356]
[1723092953432,2.60435231,152.34,152.24,0.834356]
[1723092953730,6.5652,152.32,152.24,0.834356]
[1723092954235,0.34,152.33,152.24,0.834356]
[1723092954236,6.9047,152.33,152.24,0.834356]
[1723092954405,20.0,152.32,152.24,0.834356]
[1723092954604,6.566,152.3,152.24,0.834356]
[1723092954816,6.5656,152.31,152.24,0.834356]
[1723092955023,20.0,152.3,152.24,0.834356]
[1723092955216,20.0,152.32,152.24,0.834356]
[1723092955632,6.5655,152.32,152.24,0.834356]
[1723092955833,29.22,152.31,152.24,0.834356]
[1723092956037,29.05,152.31,152.24,0.834356]
[1723092956257,20.0,152.3,152.24,0.834356]
[1723092960431,26.5662,152.3,152.24,0.834356]
[1723092961259,20.0,152.3,152.24,0.834356]
[1723092964871,26.5662,152.3,152.24,0.834356]
[1723092965169,29.05,152.27,152.24,0.834356]
[1723092967945,6.5681,152.25,152.24,0.834356]
[1723092968157,26.5681,152.25,152.24,0.834356]
[1723092968556,6.5681,152.25,152.24,0.834356]
[1723092968752,26.5681,152.25,152.24,0.834356]
[1723092969141,20.0,152.25,152.24,0.834356]
[1723092969343,31.69209424,152.27,152.24,0.834356]
[1723092969542,38.25939424,152.27,152.24,0.834356]
[1723092969738,20.0,152.26,152.24,0.834356]
[1723092970754,0.34,152.25,152.24,0.834356]
[1723092971242,20.0,152.26,152.24,0.834356]
[1723092971847,0.17,152.25,152.24,0.834356]
[1723092972045,6.5677,152.26,152.24,0.834356]
[1723092972276,20.0,152.25,152.24,0.834356]
[1723092972773,55.6181,152.25,152.24,0.834356]
[1723092972957,49.05,152.25,152.24,0.834356]
[1723092975479,10.18376341,152.29,152.24,0.834356]
[1723092975976,6.5673,152.27,152.24,0.834356]
[1723092976178,29.05,152.27,152.24,0.834356]
[1723092976564,6.5677,152.26,152.24,0.834356]
[1723092977360,29.39,152.27,152.24,0.834356]
[1723092977547,20.34,152.26,152.24,0.834356]
[1723092977764,20.0,152.26,152.24,0.834356]
[1723092980279,26.5679,152.26,152.24,0.834356]
[1723092980590,20.0,152.26,152.24,0.834356]
[1723092981080,35.6181,152.25,152.24,0.834356]
[1723092981263,55.6181,152.25,152.24,0.834356]
[1723092981791,49.05,152.25,152.24,0.834356]
[1723092983268,100.7881,152.25,152.24,0.834356]
[1723092983574,100.9581,152.25,152.24,0.834356]
[1723092983776,91.8481,152.25,152.24,0.834356]
[1723092985176,111.7881,152.25,152.24,0.834356]
[1723092985474,111.7881,152.25,152.1,6.4486]
[1723092985475,6.4203,152.2,152.1,6.4486]
[1723092985678,19.94,152.13,152.08,6.834356]
[1723092986069,19.94,152.09,152.08,6.834356]
[1723092986368,6.5746,152.1,152.08,6.834356]
[1723092986572,19.94,152.09,152.08,6.834356]
[1723092986888,65.34,152.09,151.99,19.94]
[1723092987063,19.94,152.05,151.99,19.94]
[1723092987408,19.94,152.04,151.98,19.94]
[1723092987556,19.94,152.03,151.93,7.282956]
[1723092987756,0.17,152.04,151.94,29.15]
[1723092987966,65.0,152.05,151.94,29.15]
[1723092988179,0.34,152.04,151.93,7.282956]
[1723092988385,0.34,152.04,151.94,29.15]
[1723092988775,6.78788703,152.09,151.98,29.15]
[1723092988956,6.575,152.09,151.98,29.15]
[1723092989157,35.8946,152.1,151.98,29.15]
[1723092989356,20.0,152.09,151.98,29.15]
[1723092990276,20.0,152.09,152.0,29.15]
[1723092990495,20.0,152.1,151.94,1.31551113]
[1723092990663,6.5763,152.07,151.95,29.15]
[1723092990997,0.17,152.06,151.95,29.15]
[1723092991180,29.15,152.1,151.99,29.15]
[1723092991357,45.0,152.1,151.99,29.15]
[1723092991557,35.7225,152.15,152.03,29.15]
[1723092991975,29.15,152.15,152.03,29.15]
[1723092992195,29.15,152.15,152.02,22.3744]
[1723092992378,29.15,152.13,152.02,22.3744]
[1723092992692,6.5737,152.12,152.02,22.3744]
[1723092992889,20.0,152.11,152.02,22.3744]
[1723092993068,29.15,152.13,152.02,22.3744]
[1723092993069,20.0,152.12,152.02,22.3744]
[1723092993258,0.17,152.11,152.02,22.3744]
[1723092993486,0.34,152.11,152.02,22.3744]
[1723092993695,45.34,152.11,152.02,22.3744]
[1723092993994,0.34,152.11,152.02,22.3744]
[1723092994201,81.0641,152.11,151.99,29.15]
[1723092994380,20.0,152.1,151.99,29.15]
[1723092994568,51.9151,152.09,151.99,29.15]
[1723092994770,20.0,152.08,151.99,29.15]
[1723092994998,0.17,152.07,151.98,6.2559]
[1723092995300,6.5764,152.06,151.98,6.2559]
[1723092995482,20.34,152.05,151.95,29.15]
[1723092996070,0.34,152.05,151.95,29.15]
[1723092996271,74.49,152.05,151.93,7.063356]
[1723092996481,6.5781,152.02,151.93,7.063356]
[1723092996670,0.34,152.01,151.93,7.063356]
[1723092997116,20.0,152.03,151.93,7.063356]
[1723092997280,26.5776,152.03,151.93,7.063356]
[1723092997478,29.15,152.01,151.93,0.834356]
[1723092997672,20.0,152.03,151.93,0.834356]
[1723092998072,6.5784,152.02,151.93,0.834356]
[1723092998292,389.44,152.04,151.93,0.834356]
[1723092998603,20.34,152.03,151.93,0.834356]
[1723092998915,20.0,152.03,151.94,29.15]
[1723092999497,20.0,152.03,151.96,29.15]
[1723092999679,389.1,152.04,151.96,29.15]
[1723092999884,389.1,152.04,151.98,29.15]
[1723093000579,389.1,152.04,151.97,29.15]
[1723093001486,6.5754,152.08,151.99,29.15]
[1723093001690,10.0965107,152.1,152.01,29.15]
[1723093003685,6.5756,152.08,151.96,16.0785]
[1723093003917,6.5757,152.08,151.98,29.15]
[1723093004203,6.5757,152.08,151.96,45.2285]
[1723093004397,424.825,152.09,151.96,45.2285]
[1723093004604,20.17,152.08,151.98,29.15]
[1723093004807,26.5757,152.08,151.96,16.0785]
[1723093004978,6.5763,152.06,151.96,16.0785]
[1723093005178,0.34,152.05,151.95,35.1689]
[1723093005406,29.32,152.05,151.95,6.0189]
[1723093005593,0.17,152.04,151.95,6.0189]
[1723093005905,84.9,152.04,151.93,0.834356]
[1723093006104,6.5793,151.99,151.93,0.834356]
[1723093006285,415.4114,152.03,151.93,0.834356]
[1723093006286,6.5802,151.97,151.93,0.834356]
[1723093006608,6.75,151.98,151.93,0.834356]
[1723093006795,20.0,151.97,151.93,0.834356]
[1723093006982,389.1,152.01,151.93,0.834356]
[1723093007183,20.17,152.0,151.93,0.834356]
[1723093007499,20.0,152.0,151.93,0.834356]
[1723093007584,26.5793,152.0,151.93,0.834356]
[1723093007790,26.7493,152.0,151.93,0.834356]
[1723093007997,6.7493,151.99,151.93,0.834356]
[1723093008173,20.0,151.98,151.93,0.834356]
[1723093008891,20.0,151.99,151.93,0.834356]
[1723093009512,6.5798,151.98,151.93,0.834356]
[1723093009708,20.0,151.99,151.93,0.834356]
[1723093009893,20.17,152.0,151.93,0.834356]
[1723093010210,26.749,152.0,151.93,0.834356]
[1723093010579,20.17,152.0,151.93,0.834356]
[1723093010795,20.0,151.99,151.93,0.834356]
[1723093011916,6.5799,151.98,151.93,0.834356]
[1723093012457,6.7499,151.98,151.93,0.834356]
[1723093013408,20.0,151.97,151.93,0.834356]
[1723093013596,6.5815,151.94,151.93,0.834356]
[1723093013913,20.17,151.97,151.93,0.834356]
[1723093014223,20.0,151.97,151.93,0.834356]
[1723093014719,6.5811,151.95,151.93,0.834356]
[1723093014891,6.5807,151.96,151.93,0.834356]
[1723093015221,6.5811,151.95,151.93,0.834356]
[1723093015385,0.17,151.97,151.93,0.834356]
[1723093015593,20.0,151.98,151.93,0.834356]
[1723093015989,6.5794,151.99,151.93,0.834356]
[1723093016389,37.5,151.95,151.77,6.836456]
[1723093016616,22.2812,151.97,151.77,6.836456]
[1723093016617,6.5847,151.87,151.77,6.836456]
[1723093016923,37.5,151.89,151.77,6.836456]
[1723093017219,20.0,151.88,151.77,6.836456]
[1723093017722,6.585,151.86,151.77,6.836456]
[1723093018108,0.34,151.87,151.77,6.836456]
[1723093018313,6.7551,151.86,151.77,0.834356]
[1723093018513,20.0,151.88,151.77,0.834356]
[1723093018514,20.0,151.85,151.77,0.834356]
[1723093018702,20.0,151.88,151.77,0.834356]
[1723093018703,26.5842,151.88,151.77,0.834356]
[1723093019629,10.09610792,151.92,151.8,37.5]
[1723093019937,10.09610792,151.92,151.78,21.6164]
[1723093019938,57.23,151.96,151.78,21.6164]
[1723093020216,19.73,151.96,151.79,1.31471484]
[1723093020393,19.73,151.96,151.78,66.6164]
[1723093020593,6.5829,151.91,151.78,67.93353932]
[1723093020894,6.79330465,151.98,151.89,44.0216]
[1723093021091,10.23448572,152.0,151.89,60.2955]
[1723093021290,10.23448572,152.0,151.9,45.0]
[1723093021794,6.5775,152.04,151.9,46.31611984]
[1723093022092,6.5767,152.06,151.9,46.31604376]
[1723093022299,57.5,152.11,151.92,37.5]
[1723093022512,6.5767,152.06,151.93,46.315863]
[1723093022823,57.5,152.11,151.93,46.315863]
[1723093023001,35.8715,152.1,151.93,45.0]
[1723093023501,10.24503432,152.1,151.98,37.5]
[1723093023712,10.95422394,152.13,151.93,45.0]
[1723093023915,10.95422394,152.13,151.98,37.5]
[1723093024232,10.95422394,152.13,151.94,1.64970799]
[1723093024233,10.95422394,152.13,152.01,37.5]
[1723093024530,10.95422394,152.13,152.0,6.3136]
[1723093024736,48.45422394,152.13,151.93,6.3136]
[1723093024914,48.45422394,152.13,151.94,45.0]
[1723093025297,48.45422394,152.13,151.95,37.5]
[1723093025499,6.5741,152.12,151.96,45.0]
[1723093025728,6.5741,152.12,151.95,37.5]
[1723093025729,20.0,152.12,151.95,37.5]
[1723093026022,73.6674,152.1,151.93,6.3136]
[1723093026328,0.17,152.09,151.93,7.3000896]
[1723093026510,0.17,152.12,151.95,37.5]
[1723093026704,6.5737,152.12,151.96,1.31571561]
[1723093026911,6.5742,152.11,151.98,37.5]
[1723093027105,6.5737,152.12,151.98,37.5]
[1723093027326,10.95422394,152.13,152.01,37.5]
[1723093027506,6.5724,152.15,152.02,46.31499098]
[1723093027708,6.5719,152.17,152.02,46.31499098]
[1723093027928,6.7824386,152.18,152.03,1.31489697]
[1723093028245,6.7824386,152.18,152.01,15.8475]
[1723093028412,6.5735,152.13,152.02,45.0]
[1723093028727,6.572,152.16,152.02,45.0]
[1723093028939,6.5716,152.17,152.03,6.0]
[1723093029114,6.5716,152.17,152.04,46.31490523]
[1723093029312,6.5725,152.15,152.03,6.0]
[1723093029901,6.5729,152.14,152.03,6.0]
[1723093030134,37.5,152.17,152.03,6.0]
[1723093030330,0.34,152.16,152.03,6.0]
[1723093030639,20.17,152.16,152.03,6.0]
[1723093030828,20.17,152.16,152.04,46.31492415]
[1723093031049,20.17,152.16,152.05,1.31493402]
[1723093031534,20.0,152.16,152.05,1.31493402]
[1723093032212,26.572,152.16,152.05,1.31493402]
[1723093032509,20.0,152.16,152.04,46.31489469]
[1723093032718,17.10778116,152.19,152.05,1.31489429]
[1723093032906,10.32863916,152.19,152.06,37.5]
[1723093033111,10.32863916,152.19,152.07,45.0]
[1723093033316,10.32863916,152.19,152.03,43.5]
[1723093033608,10.32863916,152.19,152.04,45.0]
[1723093033832,10.32863916,152.19,152.05,1.31466167]
[1723093034013,16.89953916,152.19,152.05,1.31466167]
[1723093034211,10.32863916,152.19,152.05,1.31466167]
[1723093034412,436.05412913,152.24,152.05,1.31466167]
[1723093034413,389.1,152.24,152.09,37.5]
[1723093034635,263.78312132,152.27,152.1,45.0]
[1723093034636,389.1,152.26,152.1,45.0]
[1723093034810,6.77678369,152.24,152.1,45.0]
[1723093035027,6.5698,152.21,152.1,45.0]
[1723093035427,6.5705,152.2,152.1,45.0]
[1723093035711,6.5705,152.2,152.07,21.2264]
[1723093035936,6.5705,152.2,152.08,45.0]
[1723093036112,6.5708,152.19,152.08,45.0]
[1723093036539,6.5703,152.2,152.08,45.0]
[1723093037047,6.5707,152.19,152.08,45.0]
[1723093038440,6.5703,152.2,152.08,45.0]
[1723093038946,53.9239,152.22,152.07,21.2264]
[1723093039112,20.0,152.21,152.07,21.2264]
[1723093039529,6.5703,152.2,152.07,21.2264]
[1723093039709,20.0,152.19,152.08,45.0]
[1723093040138,6.5699,152.21,152.08,46.31460407]
[1723093040541,2.69367817,152.22,152.07,21.2264]